bitfinex-derivatives/quotes_BNBF0:USTF0_20250810
["timestamp","ask_amount","ask_price","bid_price","bid_amount"]
[1754836428475,1.6662951,800.76,799.13,0.5]
[1754836428671,1.6662951,800.75,799.13,0.5]
[1754836429177,1.6662951,800.78,799.13,0.5]
[1754836429373,1.6662951,800.8,799.13,0.5]
[1754836430374,1.6662951,800.82,799.13,0.5]
[1754836430875,1.6662951,800.83,799.13,0.5]
[1754836433271,1.6662951,800.73,799.13,0.5]
[1754836434276,0.2172088,801.9,799.13,0.5]
[1754836434277,1.6662951,800.71,799.13,0.5]
[1754836435176,1.6662951,800.72,799.13,0.5]
[1754836435379,1.6662951,800.6,799.13,0.5]
[1754836435670,2.7957214,801.36,799.13,0.5]
[1754836435671,1.6662951,800.58,799.13,0.5]
[1754836435873,1.6662951,800.49,799.13,0.5]
[1754836436676,1.6662951,800.44,799.13,0.5]
[1754836438178,1.6662951,800.42,799.13,0.5]
[1754836438678,1.6662951,800.43,799.13,0.5]
[1754836438878,1.6662951,800.42,799.13,0.5]
[1754836439577,1.6662951,800.43,799.13,0.5]
[1754836439876,1.6662951,800.38,799.13,0.5]
[1754836440279,1.6662951,800.34,799.13,0.5]
[1754836440481,1.6662951,800.33,799.13,0.5]
[1754836440676,1.6662951,800.34,799.13,0.5]
[1754836440875,1.6662951,800.29,799.13,0.5]
[1754836441075,1.6662951,800.3,799.13,0.5]
[1754836444084,1.6662951,800.25,799.13,0.5]
[1754836444283,1.6662951,800.23,799.13,0.5]
[1754836444878,1.6662951,800.24,799.13,0.5]
[1754836445078,1.6662951,800.23,799.13,0.5]
[1754836445377,1.6662951,800.22,799.13,0.5]
[1754836446177,1.6662951,800.22,798.97,0.5]
[1754836446583,1.6662951,800.24,798.97,0.5]
[1754836446781,1.6662951,800.25,798.97,0.5]
[1754836446979,2.7957214,800.85,798.97,0.5]
[1754836446980,1.6662951,800.26,798.97,0.5]
[1754836447184,1.6662951,800.25,798.97,0.5]
[1754836447582,1.6662951,800.24,798.97,0.5]
[1754836448683,0.8347766,799.95,798.97,0.5]
[1754836449082,0.8347766,799.93,798.97,0.5]
[1754836449586,0.6347766,799.92,798.97,0.5]
[1754836449884,1.1131059,800.06,798.97,0.5]
[1754836451387,1.1131059,800.01,798.97,0.5]
[1754836453286,1.1131059,800.0,798.97,0.5]
[1754836453788,1.1131059,800.03,798.97,0.5]
[1754836454083,1.1131059,800.0,798.97,0.5]
[1754836455187,1.1131059,799.99,798.97,0.5]
[1754836455384,1.1131059,800.0,798.97,0.5]
[1754836455988,1.1131059,799.99,798.97,0.5]
[1754836456186,1.1131059,799.89,798.97,0.5]
[1754836456489,1.1131059,799.85,798.76,0.5]
[1754836456690,1.1131059,799.87,798.76,0.5]
[1754836456890,1.1131059,799.84,798.76,0.5]
[1754836457189,1.1131059,799.79,798.76,0.5]
[1754836457491,1.1131059,799.85,798.76,0.5]
[1754836458988,1.1131059,799.88,798.76,0.5]
[1754836459389,1.1131059,799.89,798.76,0.5]
[1754836460491,1.1131059,799.88,798.76,0.5]
[1754836461790,1.1131059,799.94,798.76,0.5]
[1754836462392,1.1131059,800.0,798.76,0.5]
[1754836462893,1.1131059,800.03,798.76,0.5]
[1754836463191,1.1131059,800.02,798.76,0.5]
[1754836463590,1.1131059,800.01,798.76,0.5]
[1754836464393,1.1131059,799.99,798.76,0.5]
[1754836465196,1.1131059,799.98,798.76,0.5]
[1754836466492,1.1131059,799.97,798.76,0.5]
[1754836467300,1.1131059,799.95,798.76,0.5]
[1754836468292,1.1131059,799.94,798.76,0.5]
[1754836468998,1.1131059,799.98,798.76,0.5]
[1754836469195,1.1131059,799.93,798.76,0.5]
[1754836469399,1.1131059,799.96,798.76,0.5]
[1754836469594,1.1131059,799.95,798.76,0.5]
[1754836469796,1.1131059,799.96,798.76,0.5]
[1754836470099,1.1131059,799.87,798.76,0.5]
[1754836470298,1.1131059,799.85,798.76,0.5]
[1754836470494,1.1131059,800.07,798.76,0.5]
[1754836471199,1.1131059,800.06,798.76,0.5]
[1754836471699,1.1131059,800.07,798.76,0.5]
[1754836472096,1.1131059,800.06,798.76,1.6194492]
[1754836472301,1.1131059,800.07,798.76,0.5]
[1754836472500,1.1131059,800.04,798.76,0.5]
[1754836473401,1.1131059,800.0,798.77,1.1194492]
[1754836473701,1.1131059,799.98,798.76,0.5]
[1754836473998,1.1131059,799.93,798.76,0.5]
[1754836475797,1.1131059,799.96,798.76,0.5]
[1754836476398,0.9131059,799.96,798.76,0.5]
[1754836476701,1.6662951,800.19,798.76,0.5]
[1754836476901,1.6662951,800.41,798.76,0.5]
[1754836477300,1.6662951,800.42,798.76,0.5]
[1754836477698,1.6662951,800.41,798.76,0.5]
[1754836479203,1.6662951,800.42,798.76,0.5]
[1754836480900,1.6662951,800.39,798.76,0.5]
[1754836481400,1.6662951,800.17,798.76,0.5]
[1754836481602,1.6662951,800.06,798.76,0.5]
[1754836481901,1.6662951,799.97,798.58,0.5]
[1754836482610,1.6662951,800.04,798.58,0.5]
[1754836483212,1.6662951,800.03,798.58,0.5]
[1754836486714,1.6662951,799.96,798.58,0.5]
[1754836487114,1.6662951,800.01,798.58,0.5]
[1754836491720,1.6662951,799.99,798.58,0.5]
[1754836492218,1.6662951,799.98,798.58,0.5]
[1754836492617,1.6662951,799.93,798.58,0.5]
[1754836492816,1.6662951,799.94,798.58,0.5]
[1754836493316,1.6662951,799.93,798.58,0.5]
[1754836493518,1.6662951,799.98,798.58,0.5]
[1754836494020,1.6662951,800.1,798.58,0.5]
[1754836496421,1.6662951,800.09,798.58,0.5]
[1754836497020,1.6662951,800.06,798.58,0.5]
[1754836497319,1.6662951,800.06,798.58,1.6194492]
[1754836497919,1.6662951,800.06,798.58,0.5]
[1754836498117,1.6662951,800.06,798.58,1.6194492]
[1754836498320,1.6662951,800.05,798.59,1.1194492]
[1754836499324,1.6662951,800.05,798.6,1.1194492]
[1754836499520,1.6662951,800.19,798.56,0.217318]
[1754836499722,1.6662951,800.17,798.56,0.217318]
[1754836500221,1.6662951,800.14,798.56,0.217318]
[1754836500426,1.6662951,800.06,798.56,0.217318]
[1754836500724,1.6662951,799.96,798.56,0.217318]
[1754836500920,1.6662951,799.71,798.56,0.217318]
[1754836501426,1.6662951,799.7,798.56,0.217318]
[1754836501627,1.6662951,799.72,798.56,0.217318]
[1754836501926,2.7957214,800.32,798.56,0.217318]
[1754836501927,1.6662951,799.67,798.56,0.217318]
[1754836502226,1.6662951,799.76,798.56,0.217318]
[1754836502923,1.6662951,799.74,798.56,0.217318]
[1754836503822,1.6662951,799.73,798.56,0.217318]
[1754836504329,1.6662951,799.74,798.56,0.217318]
[1754836504827,1.6662951,799.76,798.56,0.217318]
[1754836505929,1.6662951,799.63,798.56,0.217318]
[1754836506430,1.1175458,799.5,798.56,0.217318]
[1754836507028,0.9175458,799.5,798.56,0.217318]
[1754836507627,1.6662951,799.62,798.56,0.217318]
[1754836508334,1.6662951,799.63,798.56,0.217318]
[1754836508632,2.7957214,800.15,798.56,0.217318]
[1754836508633,1.6662951,799.6,798.56,0.217318]
[1754836508829,1.6662951,799.57,798.56,0.217318]
[1754836509533,0.83821928,799.28,798.56,0.217318]
[1754836511229,2.7957214,800.06,798.56,0.217318]
[1754836511230,0.83821928,799.3,798.56,0.217318]
[1754836511534,0.62078655,799.4,798.55,0.5]
[1754836511733,1.6662951,799.81,798.55,0.5]
[1754836512330,1.6662951,799.82,798.55,0.5]
[1754836512829,1.6662951,799.84,798.55,0.5]
[1754836514630,1.6662951,799.84,798.68,0.21737908]
[1754836514833,1.6662951,799.87,798.68,0.21737908]
[1754836515134,1.6662951,799.86,798.68,0.21737908]
[1754836515334,1.6662951,799.9,798.68,0.21737908]
[1754836516233,2.7957214,800.62,798.68,0.21737908]
[1754836516234,1.6662951,799.88,798.68,0.21737908]
[1754836516430,1.6662951,799.85,798.68,0.21737908]
[1754836516628,1.6662951,799.85,798.75,0.5]
[1754836516929,1.6662951,799.91,798.75,0.5]
[1754836517335,1.6662951,799.93,798.75,0.5]
[1754836517934,1.6662951,799.95,798.75,0.5]
[1754836518134,1.6662951,799.96,798.75,0.5]
[1754836518434,1.6662951,799.97,798.75,0.5]
[1754836519935,1.6662951,799.98,798.75,0.5]
[1754836520132,1.6662951,800.0,798.75,0.5]
[1754836520435,2.7957214,800.63,798.75,0.5]
[1754836520436,1.6662951,800.05,798.75,0.5]
[1754836521132,1.6662951,800.06,798.75,0.5]
[1754836521537,1.6662951,800.07,798.75,0.5]
[1754836521736,1.6662951,800.18,798.75,0.5]
[1754836521936,1.6662951,800.17,798.75,0.5]
[1754836522836,1.6662951,800.17,798.92,0.5]
[1754836523036,1.6662951,800.2,798.92,0.5]
[1754836523236,1.6662951,800.18,798.92,0.5]
[1754836523437,1.6662951,800.3,798.92,0.5]
[1754836525938,1.6662951,800.27,798.92,0.5]
[1754836526140,1.6662951,800.28,798.92,0.5]
[1754836526340,1.6662951,800.23,798.92,0.5]
[1754836526835,1.6662951,800.16,798.92,0.5]
[1754836527035,1.6662951,800.15,798.92,0.5]
[1754836527640,1.6662951,800.16,798.92,0.5]
[1754836528139,1.6662951,800.05,798.92,0.5]
[1754836529343,1.6662951,800.06,798.92,0.5]
[1754836529643,1.4662951,800.06,798.92,0.5]
[1754836530142,2.7957214,800.65,798.92,0.5]
[1754836530438,0.71726468,800.64,798.92,0.5]
[1754836530639,0.71726468,800.63,798.92,0.5]
[1754836530844,0.71726468,800.62,798.92,0.5]
[1754836531043,0.71726468,800.61,798.92,0.5]
[1754836531240,0.71726468,800.6,798.92,0.5]
[1754836531442,0.71726468,800.59,798.92,0.5]
[1754836531642,0.71726468,800.58,798.92,0.5]
[1754836531839,0.71726468,800.57,798.92,0.5]
[1754836532040,0.71726468,800.56,798.92,0.5]
[1754836532344,0.71726468,800.55,798.92,0.5]
[1754836532544,0.71726468,800.54,798.92,0.5]
[1754836532739,0.71726468,800.53,798.92,0.5]
[1754836532946,0.71726468,800.52,798.92,0.5]
[1754836533141,0.71726468,800.51,798.92,0.5]
[1754836533339,0.71726468,800.5,798.92,0.5]
[1754836533540,0.71755546,800.49,798.92,0.5]
[1754836533745,0.71755546,800.48,798.92,0.5]
[1754836533945,2.7957214,800.69,798.92,0.5]
[1754836533946,0.71755546,800.47,798.92,0.5]
[1754836534249,0.71755546,800.46,798.92,0.5]
[1754836534545,0.71755546,800.45,798.92,0.5]
[1754836534746,2.7957214,800.68,798.92,0.5]
[1754836534947,0.71761982,800.67,798.92,0.5]
[1754836535141,0.71761982,800.66,798.92,0.5]
[1754836535344,0.71761982,800.65,798.92,0.5]
[1754836535542,0.71761982,800.64,798.92,0.5]
[1754836535744,0.71761982,800.63,798.92,0.5]
[1754836535943,0.71761982,800.62,798.92,0.5]
[1754836536144,0.71761982,800.61,798.92,0.5]
[1754836536345,0.71761982,800.6,798.92,0.5]
[1754836536546,0.71761982,800.59,798.92,0.5]
[1754836536744,0.71761982,800.58,798.92,0.5]
[1754836536947,0.71761982,800.57,798.92,0.5]
[1754836537248,1.1172088,799.89,798.92,0.5]
[1754836538645,1.1172088,799.87,798.92,0.5]
[1754836538950,1.1172088,799.86,798.92,0.5]
[1754836539249,1.1172088,799.87,798.92,0.5]
[1754836542147,1.1172088,799.84,798.92,0.5]
[1754836543748,1.1172088,799.85,798.92,0.5]
[1754836544153,1.1172088,799.84,798.92,0.5]
[1754836544350,1.1172088,799.86,798.92,0.5]
[1754836544553,1.1172088,799.97,798.92,0.5]
[1754836545053,1.1172088,800.01,798.92,0.5]
[1754836545249,1.1172088,800.0,798.92,0.5]
[1754836546756,5.5914428,801.84,798.92,0.5]
[1754836546757,1.1172088,800.03,798.92,0.5]
[1754836546956,1.1172088,800.14,798.92,0.5]
[1754836547657,1.1172088,800.15,798.92,0.5]
[1754836547853,1.1172088,800.13,798.92,0.5]
[1754836549059,1.1172088,800.11,798.92,0.5]
[1754836551557,1.1172088,800.13,798.92,0.5]
[1754836553058,1.1172088,800.14,798.92,0.5]
[1754836553960,1.1172088,800.13,798.92,0.5]
[1754836554161,1.1172088,800.14,798.92,0.5]
[1754836554656,1.1172088,800.13,798.92,0.5]
[1754836555161,1.1172088,800.14,798.92,0.5]
[1754836555361,1.1172088,800.13,798.92,0.5]
[1754836555661,1.1172088,800.14,798.92,0.5]
[1754836555861,1.1172088,800.04,798.92,0.5]
[1754836556961,1.1172088,799.99,798.92,0.5]
[1754836557163,1.1172088,799.95,798.92,0.5]
[1754836557558,1.1172088,799.81,798.92,0.5]
[1754836558565,0.9172088,799.81,798.92,0.5]
[1754836558764,1.6751178,799.92,798.92,0.5]
[1754836559261,1.6751178,799.91,798.92,0.5]
[1754836559565,1.6751178,799.86,798.92,0.5]
[1754836559760,1.6751178,799.85,798.92,0.5]
[1754836560062,1.6751178,799.87,798.92,0.5]
[1754836560264,1.6751178,799.86,798.92,0.5]
[1754836560465,1.6751178,799.87,798.75,0.5]
[1754836560666,1.6751178,799.86,798.75,0.5]
[1754836560961,1.6751178,799.85,798.75,0.5]
[1754836561465,1.6751178,799.84,798.75,0.5]
[1754836561966,1.6751178,799.82,798.75,0.5]
[1754836562667,1.6751178,799.78,798.75,0.5]
[1754836563366,1.6751178,799.77,798.71,0.83437654]
[1754836563561,1.6751178,799.79,798.72,0.83437654]
[1754836563865,1.6751178,799.79,798.71,0.83437654]
[1754836564264,1.6751178,799.78,798.72,0.83437654]
[1754836564465,1.6751178,799.79,798.72,0.83437654]
[1754836564664,1.6751178,799.82,798.74,0.83437654]
[1754836564863,1.6751178,799.84,798.75,0.83437654]
[1754836565266,1.6751178,799.83,798.75,0.83437654]
[1754836565566,1.6751178,799.81,798.73,0.83437654]
[1754836566368,1.6751178,799.8,798.74,0.83437654]
[1754836566564,1.6751178,799.81,798.74,0.83437654]
[1754836566769,1.6751178,799.88,798.81,0.83437654]
[1754836567370,1.6751178,799.88,798.82,0.83437654]
[1754836568068,1.6751178,799.89,798.81,0.83437654]
[1754836568368,1.6751178,799.89,798.82,0.83437654]
[1754836568577,1.6751178,799.88,798.81,0.83437654]
[1754836568773,1.6751178,799.88,798.82,0.83437654]
[1754836569178,1.6751178,799.87,798.82,0.83437654]
[1754836569378,1.6751178,799.85,798.81,0.83437654]
[1754836570178,1.6751178,799.84,798.81,0.83437654]
[1754836570375,2.7957214,800.41,798.7,0.83437654]
[1754836570376,1.6751178,799.96,798.7,0.83437654]
[1754836570576,1.6751178,799.7,798.73,0.83437654]
[1754836570874,1.6751178,799.66,798.7,0.83437654]
[1754836571078,1.6751178,799.68,798.69,0.83437654]
[1754836571680,0.8390967,799.41,798.69,0.83437654]
[1754836572280,2.7957214,800.21,798.68,0.21737908]
[1754836572281,0.8390967,799.4,798.7,0.83437654]
[1754836572579,0.6390967,799.41,798.69,0.83437654]
[1754836572781,1.6751178,799.69,798.69,0.83437654]
[1754836573277,1.6751178,799.7,798.69,0.83437654]
[1754836574383,1.6751178,799.71,798.69,0.83437654]
[1754836574978,1.6751178,799.74,798.68,1.05175562]
[1754836576382,1.6751178,799.75,798.68,0.21737908]
[1754836576577,1.6751178,799.74,798.68,0.21737908]
[1754836576781,1.6751178,799.7,798.68,0.21737908]
[1754836577075,1.6751178,799.73,798.68,0.21737908]
[1754836577282,1.6751178,799.74,798.68,0.21737908]
[1754836578380,1.6751178,799.75,798.68,0.21737908]
[1754836578578,1.6751178,799.76,798.68,0.21737908]
[1754836579182,1.6751178,799.75,798.68,0.21737908]
[1754836580481,1.6751178,799.76,798.68,0.21737908]
[1754836580687,1.6751178,799.79,798.69,0.83437654]
[1754836581179,1.6751178,799.78,798.69,0.83437654]
[1754836581479,1.6751178,799.81,798.73,0.83437654]
[1754836581683,1.6751178,799.83,798.72,0.83437654]
[1754836582583,1.6751178,799.8,798.73,0.83437654]
[1754836582986,1.6751178,799.8,798.68,0.21737908]
[1754836582987,1.6751178,799.92,798.7,0.83437654]
[1754836583284,1.6751178,799.92,798.78,0.5]
[1754836586089,1.6751178,799.91,798.78,0.5]
[1754836586590,1.6751178,799.94,798.78,0.5]
[1754836586787,1.6751178,799.92,798.78,0.5]
[1754836587887,1.6751178,799.94,798.78,0.5]
[1754836588188,1.6751178,800.05,798.78,0.5]
[1754836588591,1.117793,799.86,798.78,0.5]
[1754836589689,1.117793,799.89,798.78,0.5]
[1754836590293,1.117793,799.88,798.83,0.83437654]
[1754836590689,1.117793,799.89,798.83,0.83437654]
[1754836590989,0.917793,799.89,798.83,0.83437654]
[1754836591194,0.917793,799.89,798.84,0.83437654]
[1754836591894,1.6751178,800.06,798.84,0.83437654]
[1754836593196,1.6751178,799.9,798.89,0.83437654]
[1754836593393,1.6751178,799.92,798.91,0.83437654]
[1754836593796,1.6751178,800.01,798.9,0.83437654]
[1754836594791,1.6751178,800.08,798.91,0.83437654]
[1754836595392,1.6751178,800.09,798.9,0.83437654]
[1754836595897,1.6751178,800.07,798.88,0.83437654]
[1754836596093,1.6751178,800.05,798.86,0.83437654]
[1754836596393,1.6751178,799.97,798.79,0.83437654]
[1754836597098,1.6751178,799.88,798.81,0.83437654]
[1754836597297,1.6751178,799.87,798.81,0.83437654]
[1754836597597,1.6751178,799.86,798.81,0.83437654]
[1754836597798,1.6751178,799.85,798.8,0.83437654]
[1754836597994,1.6751178,799.86,798.8,0.83437654]
[1754836598395,3.91401,800.68,798.78,0.5]
[1754836598396,1.6751178,799.84,798.78,0.5]
[1754836598900,1.6751178,799.82,798.78,1.33437654]
[1754836599099,1.6751178,799.81,798.78,1.33437654]
[1754836599300,1.6751178,799.82,798.79,0.83437654]
[1754836599498,1.6751178,799.84,798.81,0.83437654]
[1754836599898,1.6751178,799.85,798.81,0.83437654]
[1754836600096,1.6751178,799.88,798.84,0.83437654]
[1754836600299,1.6751178,799.88,798.83,0.83437654]
[1754836600503,1.6751178,799.88,798.78,0.5]
[1754836600700,1.6751178,799.93,798.89,0.83370242]
[1754836601302,1.6751178,799.93,798.71,0.5]
[1754836601303,1.6751178,799.91,798.87,0.83370242]
[1754836601600,3.91401,800.77,798.88,0.83370242]
[1754836601601,1.6751178,799.92,798.88,0.83370242]
[1754836602405,1.6751178,799.93,798.87,0.83370242]
[1754836603304,1.6751178,800.11,798.82,0.83370242]
[1754836603708,1.6751178,800.13,798.81,0.83370242]
[1754836606309,1.6751178,800.13,798.71,0.5]
[1754836606310,1.6751178,800.13,798.83,0.83370242]
[1754836606509,1.6751178,800.17,798.86,0.83370242]
[1754836606910,1.6751178,800.22,798.92,0.83370242]
[1754836607210,1.6751178,800.22,798.94,0.5]
[1754836608615,1.6751178,800.2,798.94,0.5]
[1754836610008,2.7957214,800.99,798.94,0.5]
[1754836610009,1.6751178,800.19,798.94,0.5]
[1754836610512,1.6751178,800.2,798.94,0.5]
[1754836611212,1.6751178,800.23,798.94,0.5]
[1754836611411,1.6751178,800.24,798.94,0.5]
[1754836611913,1.6751178,800.25,798.95,0.83370242]
[1754836612411,1.6751178,800.27,798.97,0.83370242]
[1754836612815,1.6751178,800.28,798.98,0.83370242]
[1754836613316,1.6751178,800.18,799.0,0.83370242]
[1754836613511,1.6751178,800.19,799.0,0.83370242]
[1754836613814,1.6751178,800.16,799.01,0.83370242]
[1754836614013,1.6751178,800.13,799.02,0.83370242]
[1754836614212,1.6751178,800.13,798.94,0.5]
[1754836614213,1.6751178,800.11,799.03,0.83370242]
[1754836614513,1.6751178,800.56,798.94,0.5]
[1754836614717,1.6751178,800.51,798.94,0.5]
[1754836615017,1.6751178,800.48,798.94,0.5]
[1754836615217,1.6751178,800.47,798.94,0.5]
[1754836616717,1.6751178,800.48,798.94,0.5]
[1754836616917,1.6751178,800.42,798.94,0.5]
[1754836620019,1.6751178,800.57,798.94,0.5]
[1754836620317,1.6751178,800.67,798.94,0.5]
[1754836620620,0.71894964,800.66,798.94,0.5]
[1754836620820,0.71894964,800.65,798.94,0.5]
[1754836621014,1.1181287,800.37,798.94,0.5]
[1754836622917,1.1181287,800.36,798.94,0.5]
[1754836623321,1.1181287,800.37,798.94,0.5]
[1754836623620,0.21728,801.59,798.94,0.5]
[1754836623621,1.1181287,800.33,798.94,0.5]
[1754836623818,1.1181287,800.3,798.95,0.83370242]
[1754836624117,1.1181287,800.2,799.01,0.83370242]
[1754836624519,0.9581287,800.2,799.02,0.83370242]
[1754836624922,1.6751178,800.38,799.03,0.83370242]
[1754836625119,1.6751178,800.38,799.02,0.83370242]
[1754836625420,1.6751178,800.39,799.02,0.83370242]
[1754836626226,1.6751178,800.39,799.01,0.83370242]
[1754836627122,1.6751178,800.21,799.07,0.83370242]
[1754836627326,1.6751178,800.22,799.06,0.83370242]
[1754836627928,1.6751178,800.28,799.04,0.83370242]
[1754836628124,1.6751178,800.28,799.03,0.83370242]
[1754836628729,2.7957214,800.94,798.94,1.33370242]
[1754836628730,1.6751178,800.61,798.94,1.33370242]
[1754836628925,1.6751178,800.21,798.94,0.5]
[1754836629126,1.6751178,800.02,798.94,0.5]
[1754836629329,1.6751178,799.99,798.93,0.21728475]
[1754836631331,1.6751178,799.94,798.93,0.21728475]
[1754836631730,1.6751178,799.96,798.93,0.21728475]
[1754836631928,1.6751178,799.98,798.93,0.21728475]
[1754836632133,1.6751178,799.97,798.93,0.21728475]
[1754836632433,0.83779262,799.68,798.93,0.21728475]
[1754836634634,0.63779262,799.68,798.93,0.21728475]
[1754836635132,1.6751178,799.98,798.93,0.21728475]
[1754836635329,1.6751178,799.96,798.93,0.21728475]
[1754836635531,1.6751178,799.97,798.93,0.21728475]
[1754836636137,1.6751178,799.98,798.93,0.21728475]
[1754836636436,1.6751178,799.97,798.93,0.21728475]
[1754836636837,1.6751178,799.99,798.93,0.21728475]
[1754836637137,1.6751178,799.98,798.93,0.21728475]
[1754836637334,1.6751178,799.99,798.93,0.21728475]
[1754836640040,1.6751178,800.04,798.93,0.21728475]
[1754836640235,1.6751178,800.03,798.93,0.21728475]
[1754836640635,1.6751178,800.04,798.93,0.21728475]
[1754836641234,1.6751178,800.03,798.93,0.21728475]
[1754836641835,1.6751178,800.02,798.93,0.21728475]
[1754836642239,2.7957214,800.68,798.93,0.21728475]
[1754836642240,1.6751178,800.01,798.93,0.21728475]
[1754836642936,1.6751178,800.15,798.95,0.83370242]
[1754836644342,1.6751178,800.14,798.96,0.83370242]
[1754836644937,8.9463086,802.54,798.96,0.83370242]
[1754836644938,1.6751178,800.13,798.96,0.83370242]
[1754836646237,1.6751178,800.13,798.97,0.83370242]
[1754836646942,1.6751178,800.12,798.96,0.83370242]
[1754836647141,1.6751178,800.11,798.96,0.83370242]
[1754836647437,1.6751178,800.11,798.93,0.21728475]
[1754836647438,1.6751178,800.11,798.97,0.83370242]
[1754836649243,1.6751178,800.1,798.97,0.83370242]
[1754836649844,1.6751178,800.07,798.98,0.83370242]
[1754836650144,1.6751178,800.06,798.98,0.83370242]
[1754836652642,1.6751178,800.02,799.0,0.83370242]
[1754836652845,1.6751178,800.01,799.0,0.83370242]
[1754836653447,1.4751178,800.01,799.0,0.83370242]
[1754836653946,2.7957214,800.64,799.0,0.83370242]
[1754836654249,0.71935745,800.63,799.0,0.83370242]
[1754836654445,0.71935745,800.62,799.0,0.83370242]
[1754836654640,2.7957214,800.64,799.0,0.83370242]
[1754836654641,1.1194927,799.86,799.0,0.83370242]
[1754836654846,1.1194927,799.95,798.96,0.83370242]
[1754836655143,1.1194927,799.97,798.98,0.83370242]
[1754836656843,2.7957214,800.93,799.03,0.83370242]
[1754836656844,1.1194927,800.02,799.03,0.83370242]
[1754836658244,1.1194927,800.02,799.04,0.83370242]
[1754836658644,1.1194927,800.19,798.93,0.21728475]
[1754836661141,1.1194927,800.18,798.93,0.21728475]
[1754836666250,1.1194927,800.09,798.96,0.83370242]
[1754836666746,1.1194927,800.09,798.93,0.21728475]
[1754836666747,1.1194927,800.04,798.93,0.21728475]
[1754836667046,1.1194927,799.98,798.93,0.21728475]
[1754836667350,1.1194927,799.96,798.93,1.05098717]
[1754836667649,1.1194927,799.95,798.94,0.83370242]
[1754836667850,1.1194927,799.93,798.93,0.21728475]
[1754836668248,1.1194927,799.95,798.93,0.21728475]
[1754836669649,1.1194927,799.98,798.93,0.21728475]
[1754836669849,1.1194927,799.97,798.93,0.21728475]
[1754836670749,1.1194927,799.93,798.93,0.21728475]
[1754836671053,1.1194927,799.87,798.93,0.21728475]
[1754836671951,1.1194927,799.78,798.93,0.21728475]
[1754836672152,0.2172678,801.71,798.93,0.21728475]
[1754836672153,1.1194927,799.74,798.93,0.21728475]
[1754836672352,1.1194927,799.72,798.93,0.21728475]
[1754836672955,2.7957214,800.54,798.93,0.21728475]
[1754836673155,2.7957214,800.5,798.93,0.21728475]
[1754836673354,0.7198881,800.49,798.93,0.21728475]
[1754836673557,1.6797545,799.88,798.93,0.21728475]
[1754836673856,1.6797545,799.87,798.93,0.21728475]
[1754836674859,1.6797545,799.88,798.93,0.21728475]
[1754836675058,1.6797545,799.91,798.93,0.21728475]
[1754836676659,1.6797545,799.77,798.93,0.21728475]
[1754836676859,1.6797545,799.8,798.93,0.21728475]
[1754836677059,1.6797545,799.81,798.93,0.21728475]
[1754836677562,1.6797545,799.79,798.93,0.21728475]
[1754836677761,1.6797545,799.75,798.93,0.21728475]
[1754836678358,1.6797545,799.77,798.93,0.21728475]
[1754836679062,1.6797545,799.76,798.93,0.21728475]
[1754836679262,1.6797545,799.77,798.93,0.21728475]
[1754836680465,1.6797545,799.8,798.93,0.21728475]
[1754836680765,1.6797545,799.79,798.93,0.21728475]
[1754836680967,1.6797545,799.78,798.93,0.21728475]
[1754836681465,1.6797545,799.81,798.93,0.21728475]
[1754836682266,1.6797545,799.73,798.93,0.21728475]
[1754836682471,1.6797545,799.88,798.93,0.21728475]
[1754836682667,1.6797545,799.87,798.93,0.21728475]
[1754836683166,1.6797545,799.83,798.93,0.21728475]
[1754836683372,1.6797545,799.84,798.93,0.21728475]
[1754836684370,1.6797545,799.85,798.93,0.21728475]
[1754836685273,1.6797545,799.84,798.93,0.21728475]
[1754836685469,1.6797545,799.85,798.93,0.21728475]
[1754836686572,1.6797545,799.86,798.93,0.21728475]
[1754836686766,1.6797545,799.85,798.93,0.21728475]
[1754836686970,1.6797545,800.03,798.93,0.21728475]
[1754836687168,1.6797545,800.15,798.93,0.21728475]
[1754836687372,1.6797545,800.18,798.93,0.21728475]
[1754836687670,1.6797545,800.14,798.93,0.21728475]
[1754836689077,1.6797545,800.1,798.93,0.21728475]
[1754836689376,1.6797545,800.07,798.93,0.21728475]
[1754836690576,1.6797545,800.08,798.93,0.21728475]
[1754836690777,2.7957214,800.77,798.93,0.21728475]
[1754836690778,1.6797545,800.05,798.93,0.21728475]
[1754836690977,1.6797545,800.02,798.93,0.21728475]
[1754836691374,1.6797545,800.01,798.93,0.21728475]